[Event "Live Chess"]
[Site "Chess.com"]
[Date "2023.09.16"]
[Round "-"]
[White "Ferazo"]
[Black "Miinero"]
[Result "1/2-1/2"]
[WhiteElo "1425"]
[BlackElo "1919"]
[TimeControl "900+5"]
[EndTime "15:36:02 PDT"]
[Termination "Partida empatada por acordo"]

1. c4 {[%clk 0:15:02.6]} 1... e5 {[%clk 0:15:00.4]} 2. Nc3 {[%clk 0:15:05.6]}
2... f5 {[%clk 0:15:04.7]} 3. g3 {[%clk 0:15:05.9]} 3... Nf6 {[%clk 0:15:09.1]}
4. Bg2 {[%clk 0:15:10.1]} 4... c6 {[%clk 0:15:13.5]} 5. d3 {[%clk 0:14:53]} 5...
Bc5 {[%clk 0:15:17.1]} 6. Nf3 {[%clk 0:14:55.6]} 6... d6 {[%clk 0:15:18.4]} 7.
O-O {[%clk 0:14:57.9]} 7... O-O {[%clk 0:15:22.2]} 8. a3 {[%clk 0:14:52.7]} 8...
a6 {[%clk 0:15:25.4]} 9. b4 {[%clk 0:14:56.4]} 9... Ba7 {[%clk 0:15:26]} 10. a4
{[%clk 0:14:51.1]} 10... e4 {[%clk 0:15:15.6]} 11. dxe4 {[%clk 0:14:52.1]} 11...
fxe4 {[%clk 0:15:18.8]} 12. Nd2 {[%clk 0:14:34.9]} 12... d5 {[%clk 0:15:18.1]}
13. cxd5 {[%clk 0:14:39.8]} 13... cxd5 {[%clk 0:15:21.3]} 14. Nb3 {[%clk
0:14:10.4]} 14... Bg4 {[%clk 0:15:15.7]} 15. Bg5 {[%clk 0:14:08.7]} 15... Nbd7
{[%clk 0:14:41.4]} 16. Nxd5 {[%clk 0:13:44.1]} 16... h6 {[%clk 0:14:26.3]} 17.
Nxf6+ {[%clk 0:13:34.5]} 17... Nxf6 {[%clk 0:14:31.2]} 18. Qxd8 {[%clk
0:13:31.7]} 18... Raxd8 {[%clk 0:14:36.1]} 19. Bxf6 {[%clk 0:13:25.7]} 19...
Rxf6 {[%clk 0:14:36]} 20. Rae1 {[%clk 0:11:09.8]} 20... Bf5 {[%clk 0:14:06.6]}
21. Nc5 {[%clk 0:10:59.9]} 1/2-1/2

[Event "Live Chess"]
[Site "Chess.com"]
[Date "2023.09.16"]
[Round "-"]
[White "Capi-D-Vara"]
[Black "ViniciusBritoFc"]
[Result "1-0"]
[WhiteElo "1285"]
[BlackElo "1179"]
[TimeControl "900+5"]
[EndTime "15:36:29 PDT"]
[Termination "Capi-D-Vara venceu por xeque-mate"]

1. e4 {[%clk 0:15:03.3]} 1... c5 {[%clk 0:15:04]} 2. c3 {[%clk 0:15:07]} 2... a6
{[%clk 0:15:08.3]} 3. d4 {[%clk 0:15:11]} 3... Nc6 {[%clk 0:15:12.9]} 4. Bd3
{[%clk 0:15:12.7]} 4... cxd4 {[%clk 0:15:16.1]} 5. cxd4 {[%clk 0:15:17.6]} 5...
e6 {[%clk 0:15:19.2]} 6. Ne2 {[%clk 0:15:20]} 6... g6 {[%clk 0:15:21.4]} 7. Nd2
{[%clk 0:15:04.4]} 7... Bg7 {[%clk 0:15:21]} 8. Nf3 {[%clk 0:15:08.1]} 8... Nge7
{[%clk 0:15:22.3]} 9. Bg5 {[%clk 0:15:09.4]} 9... O-O {[%clk 0:15:25.5]} 10. Qd2
{[%clk 0:15:01.8]} 10... d5 {[%clk 0:15:15.7]} 11. e5 {[%clk 0:14:36.4]} 11...
Qa5 {[%clk 0:15:10]} 12. h4 {[%clk 0:14:21.6]} 12... Qxd2+ {[%clk 0:15:09.9]}
13. Nxd2 {[%clk 0:14:26.5]} 13... b5 {[%clk 0:15:14.5]} 14. h5 {[%clk
0:14:20.8]} 14... Nb4 {[%clk 0:15:11.8]} 15. Nc1 {[%clk 0:13:43.6]} 15... Nxd3+
{[%clk 0:14:57.4]} 16. Nxd3 {[%clk 0:13:48.5]} 16... f6 {[%clk 0:15:01.9]} 17.
exf6 {[%clk 0:13:27.1]} 17... Bxf6 {[%clk 0:15:05.8]} 18. Nf3 {[%clk 0:13:30.9]}
18... Bxg5 {[%clk 0:15:07.6]} 19. Nxg5 {[%clk 0:13:35.8]} 19... Nc6 {[%clk
0:14:57]} 20. hxg6 {[%clk 0:13:28.5]} 20... hxg6 {[%clk 0:15:01.9]} 21. Kd2
{[%clk 0:13:18.8]} 21... Nxd4 {[%clk 0:15:05]} 22. Rh4 {[%clk 0:13:18.6]} 22...
Nf5 {[%clk 0:15:02.8]} 23. Rh7 {[%clk 0:13:09.8]} 23... a5 {[%clk 0:14:48.3]}
24. Ne5 {[%clk 0:12:44.5]} 24... Ng7 {[%clk 0:14:44.3]} 25. Rah1 {[%clk
0:12:23]} 25... Nh5 {[%clk 0:14:23.2]} 26. Ng4 {[%clk 0:11:40]} 26... Rf5 {[%clk
0:13:58.9]} 27. Nh6+ {[%clk 0:10:58.8]} 27... Kf8 {[%clk 0:13:54.8]} 28. Nxf5
{[%clk 0:10:56.9]} 28... exf5 {[%clk 0:13:58.9]} 29. Re1 {[%clk 0:10:37.3]}
29... Nf6 {[%clk 0:13:54.9]} 30. Rf7+ {[%clk 0:09:45.4]} 30... Kg8 {[%clk
0:13:56.5]} 31. Rxf6 {[%clk 0:09:47.9]} 31... Kg7 {[%clk 0:13:57.6]} 32. Rf7+
{[%clk 0:09:51.3]} 32... Kh6 {[%clk 0:14:01.5]} 33. f4 {[%clk 0:09:52.7]} 33...
b4 {[%clk 0:13:58.8]} 34. Rh1# {[%clk 0:09:56.4]} 1-0

[Event "Live Chess"]
[Site "Chess.com"]
[Date "2023.09.16"]
[Round "-"]
[White "samurai0718"]
[Black "Mell46"]
[Result "0-1"]
[WhiteElo "1335"]
[BlackElo "1385"]
[TimeControl "900+5"]
[EndTime "15:36:39 PDT"]
[Termination "Mell46 venceu por desistência"]

1. e4 {[%clk 0:15:01.1]} 1... e5 {[%clk 0:15:03.6]} 2. Nf3 {[%clk 0:15:03.5]}
2... Nc6 {[%clk 0:15:06.6]} 3. d4 {[%clk 0:15:05.7]} 3... exd4 {[%clk
0:15:08.7]} 4. Nxd4 {[%clk 0:15:09.4]} 4... Nxd4 {[%clk 0:14:47]} 5. Qxd4 {[%clk
0:15:11.6]} 5... Qf6 {[%clk 0:14:49.9]} 6. e5 {[%clk 0:15:01.3]} 6... Qg6 {[%clk
0:14:44]} 7. Qc3 {[%clk 0:14:24.5]} 7... Qb6 {[%clk 0:14:15.7]} 8. Be3 {[%clk
0:14:13.8]} 8... Qb4 {[%clk 0:13:28.8]} 9. Qxb4 {[%clk 0:13:58]} 9... Bxb4+
{[%clk 0:13:31.2]} 10. Bd2 {[%clk 0:13:58.1]} 10... Bc5 {[%clk 0:13:27.2]} 11.
Nc3 {[%clk 0:13:58.7]} 11... c6 {[%clk 0:12:43]} 12. Ne4 {[%clk 0:13:37.2]}
12... Bd4 {[%clk 0:12:43.3]} 13. Nd6+ {[%clk 0:13:10.4]} 13... Ke7 {[%clk
0:12:44.3]} 14. Nxc8+ {[%clk 0:13:13.7]} 14... Rxc8 {[%clk 0:12:46.3]} 15. Bc3
{[%clk 0:12:24]} 15... Bxc3+ {[%clk 0:12:03.4]} 16. bxc3 {[%clk 0:12:28.9]}
16... Ke6 {[%clk 0:12:03.5]} 17. f4 {[%clk 0:11:59.7]} 17... Ne7 {[%clk
0:11:44.4]} 18. Bc4+ {[%clk 0:11:48.2]} 18... d5 {[%clk 0:11:44.4]} 19. exd6+
{[%clk 0:11:49.3]} 19... Kxd6 {[%clk 0:11:47.8]} 20. Rd1+ {[%clk 0:11:38.9]}
20... Nd5 {[%clk 0:11:42.8]} 21. Bb3 {[%clk 0:11:31.5]} 21... Rhe8+ {[%clk
0:11:44.2]} 22. Kf2 {[%clk 0:11:08.9]} 22... Kc5 {[%clk 0:11:34.3]} 23. c4
{[%clk 0:09:35]} 23... Nxf4 {[%clk 0:11:29.7]} 24. g3 {[%clk 0:09:05.6]} 24...
Ng6 {[%clk 0:10:42.6]} 25. Rd7 {[%clk 0:08:57.1]} 25... Re7 {[%clk 0:09:11.2]}
26. Rxe7 {[%clk 0:08:41.7]} 26... Nxe7 {[%clk 0:09:14.1]} 27. Re1 {[%clk
0:08:37.7]} 27... Rc7 {[%clk 0:09:17.2]} 28. a4 {[%clk 0:08:25.2]} 28... Rd7
{[%clk 0:08:15.7]} 29. Re2 {[%clk 0:08:06.1]} 29... f6 {[%clk 0:07:51.5]} 30. g4
{[%clk 0:07:33.3]} 30... Ng6 {[%clk 0:07:47.5]} 31. Kg3 {[%clk 0:07:26.6]} 31...
Ne5 {[%clk 0:07:35]} 32. g5 {[%clk 0:07:16.5]} 32... Rd4 {[%clk 0:07:03.6]} 33.
Kh3 {[%clk 0:06:10.1]} 33... Ng6 {[%clk 0:06:51.9]} 34. Rf2 {[%clk 0:05:45]}
34... Nf4+ {[%clk 0:05:55.1]} 35. Kg3 {[%clk 0:05:30.6]} 35... fxg5 {[%clk
0:05:51.2]} 36. h4 {[%clk 0:05:29.7]} 36... h6 {[%clk 0:05:40.2]} 37. hxg5
{[%clk 0:05:29.9]} 37... hxg5 {[%clk 0:05:41.9]} 38. Rf3 {[%clk 0:05:25.6]}
38... g6 {[%clk 0:05:03.4]} 39. Ba2 {[%clk 0:05:01.4]} 39... Rd2 {[%clk
0:03:45.8]} 40. Rf2 {[%clk 0:04:12]} 40... Nh5+ {[%clk 0:01:45.4]} 41. Kg2
{[%clk 0:04:10.5]} 41... Rxf2+ {[%clk 0:01:39.2]} 42. Kxf2 {[%clk 0:04:15.4]}
42... g4 {[%clk 0:01:42.1]} 43. c3 {[%clk 0:04:13.3]} 43... g3+ {[%clk
0:01:43.7]} 44. Kg2 {[%clk 0:04:17]} 44... Kd6 {[%clk 0:01:30.8]} 45. Bb3 {[%clk
0:04:17.4]} 45... Ke5 {[%clk 0:01:30.5]} 46. Bd1 {[%clk 0:04:19.3]} 46... Kf4
{[%clk 0:01:31.6]} 47. c5 {[%clk 0:04:19.8]} 47... Nf6 {[%clk 0:01:31.1]} 48.
Bc2 {[%clk 0:04:20.5]} 48... g5 {[%clk 0:01:30.9]} 49. Bd1 {[%clk 0:04:18.7]}
49... Ne4 {[%clk 0:01:33.1]} 50. Bf3 {[%clk 0:04:10.6]} 50... Nxc3 {[%clk
0:01:27.6]} 51. a5 {[%clk 0:04:13.4]} 51... Nd5 {[%clk 0:01:19]} 52. a6 {[%clk
0:04:11.8]} 52... Ne3+ {[%clk 0:01:21.3]} 53. Kh3 {[%clk 0:04:06.2]} 53... bxa6
{[%clk 0:00:57.7]} 54. Bxc6 {[%clk 0:04:09.3]} 54... g4+ {[%clk 0:01:01.1]} 55.
Kh4 {[%clk 0:04:11.9]} 55... g2 {[%clk 0:01:01.3]} 56. Bxg2 {[%clk 0:04:12.5]}
56... Nxg2+ {[%clk 0:01:04.5]} 57. Kh5 {[%clk 0:04:15.6]} 57... Ne3 {[%clk
0:01:03.9]} 58. c6 {[%clk 0:04:19.7]} 58... Nd5 {[%clk 0:01:06.7]} 59. Kg6
{[%clk 0:04:24]} 59... g3 {[%clk 0:01:10.3]} 60. Kf7 {[%clk 0:04:28.1]} 60... g2
{[%clk 0:01:13.9]} 61. Ke6 {[%clk 0:04:33]} 61... Nc7+ {[%clk 0:01:16.4]} 62.
Kd7 {[%clk 0:04:36.8]} 62... Nb5 {[%clk 0:01:20]} 63. c7 {[%clk 0:04:39]} 63...
Nxc7 {[%clk 0:01:22.8]} 64. Kxc7 {[%clk 0:04:43.1]} 64... g1=Q {[%clk
0:01:26.3]} 0-1

[Event "Live Chess"]
[Site "Chess.com"]
[Date "2023.09.16"]
[Round "-"]
[White "VictoryisAbsolute"]
[Black "Frogstetic"]
[Result "0-1"]
[WhiteElo "610"]
[BlackElo "2014"]
[TimeControl "900+5"]
[EndTime "15:36:44 PDT"]
[Termination "Frogstetic venceu por desistência"]

1. e4 {[%clk 0:15:02]} 1... e6 {[%clk 0:14:50.2]} 2. Nc3 {[%clk 0:15:01.6]} 2...
d5 {[%clk 0:14:48.4]} 3. Bb5+ {[%clk 0:15:01.3]} 3... c6 {[%clk 0:14:48.2]} 4.
Bd3 {[%clk 0:15:03.4]} 4... Nf6 {[%clk 0:14:48.7]} 5. exd5 {[%clk 0:15:03.8]}
5... cxd5 {[%clk 0:14:47.6]} 6. Bb5+ {[%clk 0:15:02.7]} 6... Bd7 {[%clk
0:14:49.6]} 7. Nf3 {[%clk 0:15:02.3]} 7... Nc6 {[%clk 0:14:34.2]} 8. d3 {[%clk
0:14:55.7]} 8... Bb4 {[%clk 0:14:33.1]} 9. O-O {[%clk 0:14:56]} 9... O-O {[%clk
0:14:28.1]} 10. Bg5 {[%clk 0:14:49.7]} 10... h6 {[%clk 0:14:28.4]} 11. Bxc6
{[%clk 0:14:26.6]} 11... bxc6 {[%clk 0:14:25.8]} 12. Bxf6 {[%clk 0:14:29.4]}
12... Qxf6 {[%clk 0:14:27.9]} 13. d4 {[%clk 0:14:25.8]} 13... c5 {[%clk
0:14:29.9]} 14. Qd3 {[%clk 0:14:21.8]} 14... a6 {[%clk 0:14:01.4]} 15. Ne5
{[%clk 0:14:21.8]} 15... Be8 {[%clk 0:13:49.7]} 16. a3 {[%clk 0:14:17]} 16...
Bxc3 {[%clk 0:13:52.3]} 17. bxc3 {[%clk 0:14:15.6]} 17... Bb5 {[%clk 0:13:54.8]}
18. c4 {[%clk 0:14:11.4]} 18... dxc4 {[%clk 0:13:59.7]} 19. Nxc4 {[%clk
0:14:13.8]} 19... Qxd4 {[%clk 0:14:04.3]} 20. Rad1 {[%clk 0:13:54.3]} 20... Bxc4
{[%clk 0:14:06.7]} 21. Qxd4 {[%clk 0:13:58]} 21... cxd4 {[%clk 0:14:11.6]} 22.
Rfe1 {[%clk 0:14:00.5]} 22... Rfd8 {[%clk 0:14:10.2]} 23. c3 {[%clk 0:14:01.4]}
23... dxc3 {[%clk 0:14:11.6]} 24. Rxd8+ {[%clk 0:14:03.8]} 24... Rxd8 {[%clk
0:14:16.5]} 25. Rc1 {[%clk 0:14:07.7]} 25... c2 {[%clk 0:14:18.2]} 26. g3 {[%clk
0:14:09.5]} 26... Rd1+ {[%clk 0:14:22.1]} 27. Kg2 {[%clk 0:14:02.1]} 27... Bd5+
{[%clk 0:14:20.1]} 28. Kh3 {[%clk 0:14:05]} 28... Rxc1 {[%clk 0:14:24]} 0-1

[Event "Live Chess"]
[Site "Chess.com"]
[Date "2023.09.16"]
[Round "-"]
[White "GustavoFarinha"]
[Black "CroNmo"]
[Result "0-1"]
[WhiteElo "1710"]
[BlackElo "1829"]
[TimeControl "900+5"]
[EndTime "15:37:31 PDT"]
[Termination "CroNmo venceu por xeque-mate"]

1. e4 {[%clk 0:15:03.7]} 1... c5 {[%clk 0:15:01.3]} 2. Nf3 {[%clk 0:15:07.8]}
2... e6 {[%clk 0:15:05.4]} 3. d4 {[%clk 0:15:08.3]} 3... cxd4 {[%clk 0:15:09.3]}
4. Nxd4 {[%clk 0:15:13.2]} 4... Nf6 {[%clk 0:15:12.1]} 5. Nc3 {[%clk 0:15:17.2]}
5... d6 {[%clk 0:15:15.1]} 6. Bg5 {[%clk 0:15:17.9]} 6... Be7 {[%clk 0:15:18.6]}
7. f4 {[%clk 0:15:15]} 7... h6 {[%clk 0:15:16.6]} 8. Bh4 {[%clk 0:15:15.1]} 8...
O-O {[%clk 0:15:05.1]} 9. Qf3 {[%clk 0:15:06.1]} 9... e5 {[%clk 0:14:59.1]} 10.
fxe5 {[%clk 0:13:12.3]} 10... dxe5 {[%clk 0:14:59]} 11. Nf5 {[%clk 0:13:15.5]}
11... Bxf5 {[%clk 0:13:47.1]} 12. Qxf5 {[%clk 0:12:22.4]} 12... Nc6 {[%clk
0:13:49.5]} 13. Bd3 {[%clk 0:11:59.1]} 13... Re8 {[%clk 0:12:43.6]} 14. O-O-O
{[%clk 0:11:53.9]} 14... Qc8 {[%clk 0:12:18.3]} 15. Qf2 {[%clk 0:11:28]} 15...
Ng4 {[%clk 0:11:52]} 16. Qe1 {[%clk 0:10:31.7]} 16... Bxh4 {[%clk 0:11:32]} 17.
Qxh4 {[%clk 0:10:28.6]} 17... Nf6 {[%clk 0:11:18.2]} 18. Rhf1 {[%clk 0:09:42.1]}
18... a6 {[%clk 0:10:31]} 19. h3 {[%clk 0:09:37.5]} 19... Qd8 {[%clk 0:10:25.9]}
20. Qf2 {[%clk 0:09:38.3]} 20... Qd4 {[%clk 0:09:20.5]} 21. Qf3 {[%clk
0:08:15.5]} 21... Re6 {[%clk 0:06:53.2]} 22. Qf2 {[%clk 0:04:21.6]} 22... Qxf2
{[%clk 0:06:36.2]} 23. Rxf2 {[%clk 0:04:23.9]} 23... Rd8 {[%clk 0:06:39.6]} 24.
Rdf1 {[%clk 0:03:30.8]} 24... Re7 {[%clk 0:05:44.8]} 25. Nd5 {[%clk 0:02:45.2]}
25... Nxd5 {[%clk 0:05:47.7]} 26. exd5 {[%clk 0:02:50.1]} 26... Rxd5 {[%clk
0:05:51.9]} 27. Bc4 {[%clk 0:02:45.5]} 27... Rdd7 {[%clk 0:05:55.3]} 28. a3
{[%clk 0:02:40.8]} 28... b5 {[%clk 0:05:50.1]} 29. Ba2 {[%clk 0:02:44]} 29...
Kf8 {[%clk 0:05:51.7]} 30. g4 {[%clk 0:02:38.3]} 30... f6 {[%clk 0:03:37.1]} 31.
h4 {[%clk 0:02:36.9]} 31... Ke8 {[%clk 0:03:35]} 32. g5 {[%clk 0:02:35.3]} 32...
hxg5 {[%clk 0:03:26.8]} 33. hxg5 {[%clk 0:02:39.3]} 33... Kd8 {[%clk 0:03:28.2]}
34. gxf6 {[%clk 0:02:40.6]} 34... gxf6 {[%clk 0:03:16.3]} 35. Rxf6 {[%clk
0:02:43.9]} 35... Kc7 {[%clk 0:03:19.3]} 36. c3 {[%clk 0:01:46.8]} 36... e4
{[%clk 0:03:07.3]} 37. R6f2 {[%clk 0:01:26.6]} 37... Ne5 {[%clk 0:02:56]} 38.
Bb1 {[%clk 0:01:05.6]} 38... e3 {[%clk 0:02:46.3]} 39. Re2 {[%clk 0:00:58.9]}
39... Rf7 {[%clk 0:01:43.7]} 40. Rxf7 {[%clk 0:00:36.4]} 40... Rxf7 {[%clk
0:01:46.8]} 41. Rxe3 {[%clk 0:00:38.5]} 41... Rf1+ {[%clk 0:01:50]} 42. Kc2
{[%clk 0:00:42.2]} 42... Rf2+ {[%clk 0:01:51.7]} 43. Kb3 {[%clk 0:00:43.8]}
43... Nc4 {[%clk 0:01:04.3]} 44. Re1 {[%clk 0:00:32.3]} 44... Rxb2# {[%clk
0:01:08]} 0-1

[Event "Live Chess"]
[Site "Chess.com"]
[Date "2023.09.16"]
[Round "-"]
[White "Cantalicioo"]
[Black "Yurxx21"]
[Result "1/2-1/2"]
[WhiteElo "1503"]
[BlackElo "1478"]
[TimeControl "900+5"]
[EndTime "15:37:43 PDT"]
[Termination "Partida empatada por acordo"]

1. d4 {[%clk 0:14:55.5]} 1... Nf6 {[%clk 0:15:02.6]} 2. c4 {[%clk 0:14:58.8]}
2... g6 {[%clk 0:15:05.5]} 3. Nc3 {[%clk 0:15:02.4]} 3... Bg7 {[%clk 0:15:09.5]}
4. Nf3 {[%clk 0:15:06.8]} 4... d6 {[%clk 0:15:13.3]} 5. e4 {[%clk 0:15:10.6]}
5... O-O {[%clk 0:15:05.7]} 6. Bd3 {[%clk 0:15:11.6]} 6... Nbd7 {[%clk
0:15:03.2]} 7. O-O {[%clk 0:15:14.9]} 7... Re8 {[%clk 0:14:53.8]} 8. Re1 {[%clk
0:15:17.3]} 8... b6 {[%clk 0:14:45.3]} 9. Be3 {[%clk 0:15:07.8]} 9... Bb7 {[%clk
0:14:40.4]} 10. d5 {[%clk 0:14:31.9]} 10... e6 {[%clk 0:14:23.9]} 11. Qd2 {[%clk
0:14:31.6]} 11... exd5 {[%clk 0:14:25.7]} 12. cxd5 {[%clk 0:14:30.4]} 12... Ng4
{[%clk 0:14:18.9]} 13. Bf4 {[%clk 0:14:23.4]} 13... Nde5 {[%clk 0:14:11.7]} 14.
Nxe5 {[%clk 0:14:23.1]} 14... Nxe5 {[%clk 0:14:06.4]} 15. Rad1 {[%clk
0:14:19.9]} 15... Nxd3 {[%clk 0:13:48.8]} 16. Qxd3 {[%clk 0:14:22.4]} 16... Qh4
{[%clk 0:13:28.9]} 17. Qe3 {[%clk 0:13:57.2]} 17... Be5 {[%clk 0:13:13.5]} 18.
Bxe5 {[%clk 0:13:53.8]} 18... Rxe5 {[%clk 0:13:14.9]} 19. Qg3 {[%clk 0:13:24.3]}
19... Qxg3 {[%clk 0:13:14.8]} 20. hxg3 {[%clk 0:13:26.6]} 20... Rae8 {[%clk
0:13:10.7]} 21. f4 {[%clk 0:13:26.8]} 21... R5e7 {[%clk 0:13:11.3]} 22. a4
{[%clk 0:13:01.7]} 22... f5 {[%clk 0:13:12.5]} 23. Rd4 {[%clk 0:12:46]} 23...
fxe4 {[%clk 0:13:12.6]} 24. Rdxe4 {[%clk 0:12:47.3]} 24... Rxe4 {[%clk
0:13:15.7]} 25. Rxe4 {[%clk 0:12:50.8]} 25... Rxe4 {[%clk 0:13:10.1]} 26. Nxe4
{[%clk 0:12:54.2]} 26... Kf7 {[%clk 0:13:08.3]} 27. Nc3 {[%clk 0:12:54.9]} 27...
Kf6 {[%clk 0:12:59]} 28. g4 {[%clk 0:12:57.4]} 28... Bc8 {[%clk 0:12:34.7]} 29.
Ne4+ {[%clk 0:12:51.1]} 29... Kg7 {[%clk 0:12:34.3]} 30. g5 {[%clk 0:12:53.3]}
30... Bf5 {[%clk 0:12:24.9]} 31. Nc3 {[%clk 0:12:35.8]} 31... Bd3 {[%clk
0:12:13.7]} 32. Kf2 {[%clk 0:12:35.6]} 32... a6 {[%clk 0:12:13.9]} 33. Ke3
{[%clk 0:12:22.9]} 33... Bf1 {[%clk 0:12:10.9]} 34. Kf2 {[%clk 0:12:24.8]} 34...
Bd3 {[%clk 0:12:15]} 35. Ke3 {[%clk 0:12:27.6]} 35... Bc4 {[%clk 0:12:19.5]} 36.
Kd4 {[%clk 0:12:23.3]} 36... Bf1 {[%clk 0:12:22.6]} 37. g3 {[%clk 0:12:27.6]}
37... b5 {[%clk 0:12:21.8]} 38. axb5 {[%clk 0:12:31.1]} 38... axb5 {[%clk
0:12:26.7]} 39. b4 {[%clk 0:12:28.8]} 39... Bc4 {[%clk 0:12:27.9]} 40. Ke4
{[%clk 0:12:26.8]} 40... h6 {[%clk 0:12:31.1]} 41. g4 {[%clk 0:12:24.3]} 41...
hxg5 {[%clk 0:12:25.1]} 42. fxg5 {[%clk 0:12:26.7]} 42... Kf7 {[%clk 0:12:29.5]}
1/2-1/2

[Event "Live Chess"]
[Site "Chess.com"]
[Date "2023.09.16"]
[Round "-"]
[White "Japaawz"]
[Black "RDW085"]
[Result "0-1"]
[WhiteElo "401"]
[BlackElo "1406"]
[TimeControl "900+5"]
[EndTime "15:38:07 PDT"]
[Termination "RDW085 venceu por xeque-mate"]

1. e4 {[%clk 0:14:58.3]} 1... c6 {[%clk 0:15:02.9]} 2. d3 {[%clk 0:14:45.3]}
2... d5 {[%clk 0:15:01.8]} 3. exd5 {[%clk 0:14:38.7]} 3... cxd5 {[%clk
0:15:02.5]} 4. Nc3 {[%clk 0:14:42.2]} 4... Bf5 {[%clk 0:15:05.8]} 5. Bf4 {[%clk
0:14:44.9]} 5... e6 {[%clk 0:15:09.5]} 6. Qh5 {[%clk 0:14:44.2]} 6... Nf6 {[%clk
0:15:08.8]} 7. Qh4 {[%clk 0:14:46.3]} 7... Be7 {[%clk 0:15:12.1]} 8. O-O-O
{[%clk 0:14:48.6]} 8... Ne4 {[%clk 0:15:14]} 9. Qg3 {[%clk 0:14:48.8]} 9... Nxg3
{[%clk 0:15:17.9]} 10. Bxg3 {[%clk 0:14:52.7]} 10... Qb6 {[%clk 0:15:16.9]} 11.
Na4 {[%clk 0:14:46]} 11... Qb4 {[%clk 0:15:14.5]} 12. b3 {[%clk 0:14:42.8]}
12... O-O {[%clk 0:15:13.5]} 13. Be5 {[%clk 0:14:38.8]} 13... Nc6 {[%clk
0:15:08.7]} 14. Nf3 {[%clk 0:14:41.4]} 14... Nxe5 {[%clk 0:15:11.2]} 15. Nxe5
{[%clk 0:14:46.3]} 15... b5 {[%clk 0:15:10.1]} 16. Nb2 {[%clk 0:14:41.1]} 16...
Bf6 {[%clk 0:15:12.3]} 17. Nd7 {[%clk 0:14:40.1]} 17... Bxb2+ {[%clk 0:15:09.4]}
18. Kxb2 {[%clk 0:14:40.4]} 18... Rfd8 {[%clk 0:15:13.4]} 19. Ne5 {[%clk
0:14:38.7]} 19... a5 {[%clk 0:15:16.7]} 20. Nc6 {[%clk 0:14:38]} 20... Qg4
{[%clk 0:15:08.1]} 21. Re1 {[%clk 0:14:31.7]} 21... Rdc8 {[%clk 0:15:10]} 22.
Ne5 {[%clk 0:14:30.7]} 22... Qd4+ {[%clk 0:15:12.2]} 23. Kb1 {[%clk 0:14:30.9]}
23... a4 {[%clk 0:15:08.9]} 24. g4 {[%clk 0:14:20]} 24... a3 {[%clk 0:15:11.4]}
25. gxf5 {[%clk 0:14:22.4]} 25... Qb2# {[%clk 0:15:15.2]} 0-1

[Event "Live Chess"]
[Site "Chess.com"]
[Date "2023.09.16"]
[Round "-"]
[White "FerreiraPedro"]
[Black "Gabriel0298"]
[Result "1-0"]
[WhiteElo "1401"]
[BlackElo "1602"]
[TimeControl "900+5"]
[EndTime "15:39:05 PDT"]
[Termination "FerreiraPedro venceu por desistência"]

1. Nf3 {[%clk 0:15:04.1]} 1... e6 {[%clk 0:15:04.7]} 2. c4 {[%clk 0:15:06.4]}
2... d5 {[%clk 0:15:09.6]} 3. cxd5 {[%clk 0:15:10.2]} 3... exd5 {[%clk
0:15:14.5]} 4. g3 {[%clk 0:15:11.9]} 4... Nf6 {[%clk 0:15:19.1]} 5. Bg2 {[%clk
0:15:16.4]} 5... Bd6 {[%clk 0:15:23.5]} 6. O-O {[%clk 0:15:21]} 6... c6 {[%clk
0:15:27.8]} 7. Nc3 {[%clk 0:15:25.4]} 7... O-O {[%clk 0:15:32.4]} 8. Rb1 {[%clk
0:15:25.9]} 8... Bg4 {[%clk 0:15:36.6]} 9. d3 {[%clk 0:15:29.3]} 9... Nbd7
{[%clk 0:15:40.6]} 10. b4 {[%clk 0:15:25.9]} 10... Re8 {[%clk 0:15:41.5]} 11. b5
{[%clk 0:15:28]} 11... Qc7 {[%clk 0:15:37.6]} 12. bxc6 {[%clk 0:15:28.4]} 12...
bxc6 {[%clk 0:15:42.5]} 13. Bb2 {[%clk 0:14:56.2]} 13... Ne5 {[%clk 0:15:35.9]}
14. Nxe5 {[%clk 0:14:55.2]} 14... Bxe5 {[%clk 0:15:40.8]} 15. Qd2 {[%clk
0:14:51.9]} 15... Rab8 {[%clk 0:15:40.3]} 16. Rfc1 {[%clk 0:14:35.9]} 16... Bxc3
{[%clk 0:15:35.3]} 17. Bxc3 {[%clk 0:14:26.7]} 17... Rxb1 {[%clk 0:15:35.1]} 18.
Rxb1 {[%clk 0:14:29.8]} 18... Bxe2 {[%clk 0:15:37.4]} 19. Bxf6 {[%clk
0:14:32.5]} 19... gxf6 {[%clk 0:15:39.2]} 20. Qc3 {[%clk 0:13:54.9]} 20... Re6
{[%clk 0:15:26.5]} 21. Bxd5 {[%clk 0:13:55.4]} 21... Rd6 {[%clk 0:15:25.6]} 22.
Be4 {[%clk 0:13:44.5]} 22... Bh5 {[%clk 0:15:17.7]} 23. Qc5 {[%clk 0:13:33.4]}
23... Bg6 {[%clk 0:15:19.2]} 24. Rb4 {[%clk 0:12:10.6]} 24... Bxe4 {[%clk
0:15:13.2]} 25. Rxe4 {[%clk 0:12:12.4]} 25... Rxd3 {[%clk 0:15:12.6]} 26. Rg4+
{[%clk 0:12:16.4]} 1-0